bitfinex/quotes_ETHUSD_20220120
["timestamp","ask_amount","ask_price","bid_price","bid_amount"]
[1642720340870,0.02227399,3046.0,3045.6,0.00170527]
[1642720341067,1.49763415,3045.9,3045.6,0.00170527]
[1642720341266,0.32227399,3046.0,3044.9,1.17549371]
[1642720341267,1.49763415,3045.8,3044.9,1.17549371]
[1642720341464,1.47337764,3045.7,3045.0,0.00511581]
[1642720341702,0.00222588,3045.9,3045.0,0.00511581]
[1642720341703,0.3,3045.8,3045.0,0.00511581]
[1642720341905,1.49420841,3045.4,3045.0,1.38881575]
[1642720342109,1.79420841,3045.4,3045.0,1.38881575]
[1642720342409,1.79420841,3045.4,3045.1,0.00454739]
[1642720342807,1.79420841,3045.4,3044.9,0.00568423]
[1642720343008,1.79420841,3045.4,3044.9,0.00480572]
[1642720343212,4.43434266,3045.3,3044.9,0.00480572]
[1642720343417,1.77348083,3045.2,3044.4,0.00764784]
[1642720343612,1.77348083,3045.2,3044.6,0.00651099]
[1642720343613,3.73943827,3045.1,3044.6,0.00651099]
[1642720343915,2.01462083,3045.0,3044.0,0.00992153]
[1642720344112,1.5214228,3044.2,3044.0,0.00342153]
[1642720344311,1.35355563,3044.1,3043.2,2.64776396]
[1642720344518,2.77517563,3044.1,3043.3,1.15656222]
[1642720344710,2.77517563,3044.1,3043.3,0.0074005]
[1642720344711,2.47517563,3044.1,3043.3,0.0074005]
[1642720344911,2.47517563,3044.1,3043.4,0.00683207]
[1642720344912,0.02846902,3043.9,3043.4,0.00683207]
[1642720345109,0.02846902,3043.9,3042.6,0.01137946]
[1642720345310,0.02846902,3043.9,3042.7,1.16985605]
[1642720345311,0.01699209,3043.7,3042.7,1.16985605]
[1642720345586,1.11508313,3043.2,3042.7,1.3527806]
[1642720345775,1.11508313,3043.2,3042.8,0.01024262]
[1642720345980,1.28441982,3043.6,3042.8,0.01024262]
[1642720345981,0.3,3043.6,3042.8,0.01024262]
[1642720346376,3.23108944,3043.7,3042.8,0.01024262]
[1642720346577,0.3,3043.7,3042.8,0.01024262]
[1642720346776,1.50478877,3043.6,3043.2,1.26221512]
[1642720346977,1.32732564,3043.9,3043.2,1.26221512]
[1642720347278,0.3,3044.0,3043.3,0.0074005]
[1642720347477,0.82159,3043.9,3043.3,0.0074005]
[1642720347977,0.8215979,3043.5,3043.3,0.0074005]
[1642720348379,0.8215979,3043.5,3043.3,1.49898795]
[1642720348776,0.8215979,3043.5,3043.4,0.00683207]
[1642720349207,1.1215979,3043.5,3043.4,0.00683207]
[1642720349812,1.1215979,3043.5,3042.7,0.01081104]
[1642720350015,0.3,3043.5,3043.1,0.00669386]
[1642720350414,1.23055315,3044.2,3043.2,0.00796892]
[1642720350717,0.54114,3044.3,3043.1,1.27992511]
[1642720350718,0.82159,3043.9,3043.1,1.27992511]
[1642720350916,0.8215979,3043.5,3043.1,1.27992511]
[1642720351117,0.8215979,3043.5,3043.3,1.10499593]
[1642720351515,0.8215979,3043.5,3043.4,0.00683207]
[1642720351915,1.1215979,3043.5,3043.4,0.00683207]
[1642720356466,1.64311,3044.5,3043.4,0.00683207]
[1642720356467,0.8214942,3043.8,3043.4,0.00683207]
[1642720356730,3.7873,3044.6,3043.4,0.30683207]
[1642720357125,3.7873,3044.6,3043.5,0.00626365]
[1642720357325,3.8262,3044.8,3044.5,1.34982082]
[1642720357326,1.17265369,3044.8,3044.5,1.34982082]
[1642720357527,1.17265369,3044.8,3044.3,1.3929802]
[1642720357826,1.17265369,3044.8,3044.4,0.00114784]
[1642720358524,1.47265369,3044.8,3044.4,0.00114784]
[1642720358828,1.47265369,3044.8,3044.0,0.00342153]
[1642720359523,1.47265369,3044.8,3043.8,3.03272703]
[1642720359524,1.47265369,3044.8,3043.9,1.00398996]
[1642720359724,1.47265369,3044.8,3044.0,0.82124]
[1642720359924,0.8212373,3044.7,3044.2,1.5435898]
[1642720360128,0.8212373,3044.7,3044.4,1.50701249]
[1642720360557,0.8212373,3044.7,3044.3,0.00171626]
[1642720361163,0.8212373,3044.7,3044.0,0.00342153]
[1642720361368,0.8212373,3044.7,3043.6,0.00569523]
[1642720361561,0.8212373,3044.7,3042.7,0.381]
[1642720361562,1.39431456,3044.5,3043.4,1.25656131]
[1642720361767,1.39431456,3044.5,3043.5,1.13647086]
[1642720361768,1.27180691,3043.9,3043.5,1.13647086]
[1642720361962,0.3,3043.9,3043.5,1.14273451]
[1642720362163,0.3,3043.9,3043.6,0.00569523]
[1642720362362,1.64297,3044.4,3043.6,0.00569523]
[1642720362569,0.3,3044.3,3043.6,0.00569523]
[1642720362768,0.8213847,3044.2,3043.6,0.00569523]
[1642720362964,0.3,3044.1,3044.0,1.42947907]
[1642720363365,1.6425591,3044.8,3044.0,1.4329006]
[1642720363566,0.3,3044.7,3044.0,1.4329006]
[1642720363766,0.3,3044.7,3044.1,0.00285311]
[1642720363970,0.8212684,3044.5,3044.1,0.00285311]
[1642720364413,1.1212684,3044.5,3044.1,0.00285311]
[1642720366214,1.1212684,3044.5,3044.1,0.82407311]
[1642720366619,1.1212684,3044.5,3044.2,0.00228469]
[1642720367014,1.1212684,3044.5,3044.3,0.01353905]
[1642720367414,1.1212684,3044.5,3044.4,0.00114784]
[1642720371811,1.1212684,3044.5,3044.4,0.00014415]
[1642720372614,1.1212684,3044.5,3044.1,0.00184942]
[1642720375017,0.04370525,3044.4,3044.1,0.00184942]
[1642720375218,1.1212684,3044.5,3044.1,0.00184942]
[1642720377663,1.1212684,3044.5,3044.2,0.82123]
[1642720379911,1.1212684,3044.5,3044.4,1.20980464]
[1642720380212,0.3,3044.5,3044.4,1.20980464]
[1642720380610,1.1211664,3044.7,3044.4,2.03097464]
[1642720381010,0.0009927,3044.6,3044.4,2.03097464]
[1642720381411,0.0009927,3044.6,3044.5,1.44635898]
[1642720381811,0.0009927,3044.6,3044.1,1.00184942]
[1642720382017,0.75553643,3044.5,3044.1,1.00184942]
[1642720382212,0.75553643,3044.5,3044.2,0.001281]
[1642720382416,1.05553643,3044.5,3044.2,0.001281]
[1642720382816,1.05553643,3044.5,3044.3,1.38668465]
[1642720383064,0.91704393,3044.5,3044.3,1.38668465]
[1642720383565,0.91704393,3044.5,3044.3,1.38777296]
[1642720384165,0.3,3044.5,3044.3,2.20899296]
[1642720384570,0.0009927,3044.6,3044.3,2.20899296]
[1642720384968,0.0009927,3044.6,3044.3,22.15899296]
[1642720385170,0.0009927,3044.6,3044.4,1.18509905]
[1642720385368,0.0009927,3044.6,3044.5,4.07106]
[1642720385569,0.0009927,3044.6,3044.5,4.07214836]
[1642720385769,0.0009927,3044.6,3044.5,5.07214836]
[1642720385970,0.0009927,3044.6,3044.5,4.07214836]
[1642720386169,0.0009927,3044.6,3044.5,6.2584835]
[1642720386569,0.0009927,3044.6,3044.5,3.0084835]
[1642720387012,0.0009927,3044.6,3044.5,1.83566301]
[1642720387410,0.0009927,3044.6,3044.5,0.83566301]
[1642720388814,0.0009927,3044.6,3044.5,2.02366665]
[1642720389819,0.0009927,3044.6,3044.5,3.02366665]
[1642720391569,0.0009927,3044.6,3044.5,2.02366665]
[1642720392169,0.0009927,3044.6,3044.5,2.010152]
[1642720394213,0.0009927,3044.6,3044.5,2.87214836]
[1642720394620,0.0009927,3044.6,3044.5,4.05922634]
[1642720398870,0.0009927,3044.6,3044.5,5.05922634]
[1642720399467,0.0009927,3044.6,3044.5,24.00922634]
[1642720399669,0.0009927,3044.6,3044.5,24.39022634]
[1642720400069,0.0009927,3044.6,3044.5,24.69022634]
[1642720400868,9.27e-05,3044.6,3044.5,24.69022634]
[1642720401068,9.27e-05,3044.6,3044.5,26.6229375]
[1642720402110,0.00222588,3045.9,3044.6,3.2]
[1642720402315,1.50008438,3045.9,3045.1,1.64178]
[1642720402517,1.4978585,3045.8,3045.2,1.2367612]
[1642720402717,0.00222588,3045.9,3045.2,1.2367612]
[1642720402718,0.00222588,3045.9,3045.2,1.23784966]
[1642720402921,0.00625265,3045.7,3045.2,1.23784966]
[1642720403220,1.50415902,3045.6,3045.3,1.13291636]
[1642720403419,1.49847479,3045.5,3045.4,23.02085]
[1642720403618,1.5035906,3045.5,3045.4,24.45323846]
[1642720403820,0.00222588,3046.2,3045.5,3.25]
[1642720404023,0.00222588,3046.2,3045.6,20.7623]
[1642720404221,0.00284212,3046.0,3045.7,1.54390578]
[1642720404419,0.00284212,3046.0,3045.9,4.07066]
[1642720404620,0.00222588,3046.7,3045.9,24.4027484]
[1642720404821,0.00222588,3046.7,3046.6,1.11487705]
[1642720405021,0.00682108,3046.7,3046.6,1.11487705]
[1642720405468,0.00682108,3046.7,3046.6,2.46511247]
[1642720405667,0.00682108,3046.7,3046.6,3.58562247]
[1642720405868,0.00682108,3046.7,3046.6,4.58562247]
[1642720406065,0.00682108,3046.7,3046.6,23.66682247]
[1642720406370,0.00682108,3046.7,3046.6,4.97932247]
[1642720406570,0.00682108,3046.7,3046.6,4.84812247]
[1642720406768,0.00682108,3046.7,3046.6,4.97932247]
[1642720407567,0.00682108,3046.7,3046.6,4.58562247]
[1642720407973,0.00682108,3046.7,3046.6,4.71682247]
[1642720408370,0.00682108,3046.7,3046.6,7.20673692]
[1642720408769,0.00682108,3046.7,3046.6,24.04782247]
[1642720411220,2.108e-05,3046.7,3046.6,22.93294542]
[1642720411425,1.49080255,3048.0,3047.0,0.82025]
[1642720411620,1.49302843,3048.0,3047.0,2.12133817]
[1642720411821,0.00682108,3047.9,3047.0,1.30108817]
[1642720412020,0.00682108,3047.9,3047.0,19.25108817]
[1642720412220,0.00625266,3047.8,3047.7,1.28350749]
[1642720412420,0.00625266,3047.8,3047.4,1.31715812]
[1642720412421,0.00625266,3047.8,3047.4,1.28575142]
[1642720412821,0.00568423,3047.7,3047.4,1.28575142]
[1642720413073,0.00568423,3047.7,3047.4,2.10611142]
[1642720413268,0.00511581,3047.6,3047.5,1.49764934]
[1642720413468,0.00511581,3047.6,3047.1,0.00108815]
[1642720413869,0.00454739,3047.5,3047.1,0.00108815]
[1642720414275,0.00397896,3047.4,3047.1,0.00108815]
[1642720414473,0.00397896,3047.4,3047.2,1.31332]
[1642720414678,0.00341054,3047.3,3047.2,2.52872677]
[1642720415076,0.00341054,3047.3,3047.2,3.52872677]
[1642720415077,0.00625266,3047.3,3047.2,3.52872677]
[1642720416829,0.00625266,3047.3,3047.2,3.82872677]
[1642720418330,0.00625266,3047.3,3047.2,24.13757407]
[1642720418530,0.00222588,3048.5,3047.3,3.2]
[1642720418734,0.00222588,3048.5,3047.6,0.8202]
[1642720418932,0.00227369,3048.2,3047.7,0.381]
[1642720419334,0.30222588,3048.5,3047.7,1.381]
[1642720419335,0.00170527,3048.1,3047.7,1.381]
[1642720419537,0.00170527,3048.1,3047.8,21.72964901]
[1642720419736,2.12802655,3049.0,3047.8,21.72964901]
[1642720419737,0.00113684,3048.0,3047.9,5.35225]
[1642720419934,1.49080255,3049.3,3047.9,5.35225]
[1642720419935,0.00222588,3048.8,3048.1,18.95]
[1642720420136,0.00222588,3049.2,3048.3,18.95]
[1642720420333,0.00341055,3048.6,3048.5,18.95]
[1642720420582,0.00222588,3049.3,3048.5,18.95]
[1642720420583,0.00222588,3049.3,3048.7,18.95]
[1642720420782,0.00222588,3049.5,3048.9,18.95]
[1642720420977,0.00341054,3049.2,3048.9,19.331]
[1642720421378,0.00284211,3049.1,3049.0,18.95]
[1642720421578,0.00284211,3049.1,3049.0,19.331]
[1642720421777,0.00222588,3049.8,3049.1,3.2]
[1642720421979,3.79068683,3050.6,3049.2,19.462]
[1642720421980,0.00222588,3050.1,3049.2,19.462]
[1642720422183,0.00341054,3049.7,3049.4,18.95]
[1642720422377,0.00341054,3049.7,3049.5,0.512]
[1642720422579,0.01218683,3050.6,3049.6,18.95]
[1642720422777,0.01218683,3050.6,3050.4,1.34771194]
[1642720423183,0.00222588,3051.0,3050.4,1.34771194]
[1642720423386,0.00222588,3051.1,3050.4,1.34771194]
[1642720423680,0.00909478,3050.7,3050.4,1.34771194]
[1642720423882,1.49080255,3051.6,3051.0,1.49090522]
[1642720423883,0.00222588,3051.6,3051.0,1.49090522]
[1642720424084,4.00929179,3052.1,3051.0,1.49090522]
[1642720424085,1.49080255,3051.8,3051.0,1.49090522]
[1642720424359,0.00341054,3051.3,3051.0,1.49090522]
[1642720424559,0.00341054,3051.3,3051.0,2.31024522]
[1642720424757,0.00284212,3051.2,3051.0,2.31024522]
[1642720424960,0.00284212,3051.2,3051.1,1.99126316]
[1642720425160,0.00222588,3051.9,3051.2,0.00387799]
[1642720425359,2.32714098,3052.8,3051.1,22.41067316]
[1642720425360,0.00222588,3052.2,3051.3,0.381]
[1642720425560,0.41079806,3052.4,3051.2,0.00695198]
[1642720425561,7.896e-05,3051.4,3051.2,0.00695198]
[1642720425760,0.03,3052.9,3051.2,0.00695198]
[1642720425761,0.00222588,3052.2,3051.4,19.02374234]
[1642720426063,0.00397897,3052.1,3051.6,2.15242874]
[1642720426262,0.01220454,3052.6,3051.9,18.95]
[1642720426462,0.00222588,3052.7,3052.0,0.512]
[1642720426663,0.00227369,3052.5,3052.2,18.95]
[1642720426860,0.00227369,3052.5,3052.3,1.60217434]
[1642720427060,0.00227369,3052.5,3052.0,0.131]
[1642720427061,1.16941353,3052.4,3052.0,0.131]
[1642720427259,0.00170527,3052.4,3052.1,0.381]
[1642720427459,0.00113684,3052.3,3052.1,0.07464591]
[1642720427865,0.25277776,3052.8,3051.7,0.0022737]
[1642720428073,0.01230034,3052.3,3051.7,0.0022737]
[1642720428274,0.00563642,3052.7,3051.7,0.381]
[1642720428575,0.16014,3053.2,3051.9,3.2]
[1642720428775,16.45750255,3054.1,3051.9,3.2]
[1642720428776,0.131,3053.7,3052.0,0.381]
[1642720428978,0.00444982,3053.7,3053.3,1.42654759]
[1642720429176,0.0125853,3054.3,3053.4,0.05631108]
[1642720429377,0.13968061,3054.2,3053.4,0.381]
[1642720429575,0.00682108,3053.9,3053.4,0.381]
[1642720429776,0.13968061,3053.8,3053.4,0.381]
[1642720429974,0.14593327,3053.8,3053.4,0.06814645]
[1642720430174,0.00568423,3053.7,3053.4,0.06814645]
[1642720430574,0.00511581,3053.6,3053.4,0.06814645]
[1642720430776,0.00511581,3053.6,3053.5,1.5240021]
[1642720430975,0.0125853,3054.3,3053.5,1.5240021]
[1642720431280,0.00682108,3053.9,3053.5,1.5240021]
[1642720431474,0.00682108,3053.9,3053.6,1.36764957]
[1642720431720,0.00625266,3053.8,3053.5,1.5240021]
[1642720432118,0.00568423,3053.7,3053.5,1.5240021]
[1642720432318,0.00568423,3053.7,3053.4,0.06814645]
[1642720432518,0.00511581,3053.6,3053.4,0.06814645]
[1642720432725,0.00511581,3053.6,3053.4,4.645e-05]
[1642720432926,3.20454738,3053.5,3052.9,0.381]
[1642720433127,3.20454738,3053.5,3052.5,0.381]
[1642720433128,0.16014,3053.4,3052.5,0.381]
[1642720433326,0.03566095,3053.2,3052.1,0.00341054]
[1642720433527,0.19580095,3053.2,3052.1,0.00341054]
[1642720433726,0.01978747,3053.0,3051.7,2.00568424]
[1642720433930,1.54497512,3052.7,3051.8,1.11165072]
[1642720434129,1.84497512,3052.7,3051.8,0.00511581]
[1642720434326,1.84497512,3052.7,3051.9,0.00454739]
[1642720434525,1.84497512,3052.7,3051.7,0.00568424]
[1642720435129,1.84497512,3052.7,3052.1,1.19672014]
[1642720435329,0.3,3052.7,3052.2,1.49952478]
[1642720435569,0.00170527,3053.0,3052.2,1.5023669]
[1642720435769,0.00170527,3053.0,3052.3,0.0022737]
[1642720435968,1.46014,3053.3,3052.3,0.0022737]
[1642720435969,0.00113684,3052.9,3052.3,0.0022737]
[1642720436369,1.44303567,3052.9,3052.3,0.0022737]
[1642720436676,1.44303567,3052.9,3052.2,0.00284212]
[1642720436677,0.3,3052.9,3052.2,0.00284212]
[1642720436872,0.00284211,3053.2,3052.2,0.00284212]
[1642720437072,0.00284211,3053.2,3052.3,1.28416619]
[1642720437372,0.00227369,3053.1,3052.4,0.00170527]
[1642720437573,1.2590924,3052.9,3052.4,0.00170527]
[1642720437772,1.5590924,3052.9,3052.4,0.00170527]
[1642720437972,1.5590924,3052.9,3052.1,1.19672014]
[1642720437973,0.6,3052.9,3052.2,0.00284212]
[1642720438373,0.3,3052.9,3052.2,0.00284212]
[1642720438572,0.30170527,3053.0,3052.2,1.13821948]
[1642720439075,1.20088388,3052.7,3052.3,0.0022737]
[1642720439326,1.50088388,3052.7,3052.3,0.0022737]
[1642720439522,1.50088388,3052.7,3052.2,0.00284212]
[1642720439722,0.00113684,3052.9,3052.2,0.00284212]
[1642720439925,0.30113684,3052.9,3052.2,0.00284212]
[1642720440122,0.30113684,3052.9,3052.3,0.381]
[1642720440123,0.00113684,3052.9,3052.3,0.381]
[1642720440623,0.00113684,3052.9,3052.4,0.00170527]
[1642720441629,0.00113684,3052.9,3052.2,0.00284212]
[1642720441827,1.11791834,3052.4,3051.9,1.2914316]
[1642720442126,1.41791834,3052.4,3052.0,0.00397897]
[1642720442970,0.3,3052.4,3052.0,0.00397897]
[1642720443371,0.00113684,3052.9,3052.0,0.00397897]
[1642720444375,1.11218557,3052.3,3052.0,0.00397897]
[1642720444575,1.41218557,3052.3,3052.0,0.00397897]
[1642720444773,1.41218557,3052.3,3051.5,0.00682108]
[1642720444974,0.00200743,3051.9,3051.5,0.00682108]
[1642720445574,0.00200743,3051.9,3051.7,1.15428729]
[1642720445876,0.00200743,3051.9,3051.8,0.00511581]
[1642720446277,0.00200743,3051.9,3051.5,0.00682108]
[1642720446950,0.00200743,3051.9,3051.5,1.22087643]
[1642720447350,0.00200743,3051.9,3051.6,0.00625266]
[1642720448156,1.19264038,3051.8,3051.6,0.00625266]
[1642720448357,1.49264038,3051.8,3051.6,0.00625266]
[1642720448655,0.16014,3051.7,3051.2,0.00852635]
[1642720448858,0.20418057,3051.7,3051.2,0.00852635]
[1642720449055,4.49321681,3051.3,3051.2,2.635e-05]
[1642720449459,4.94879073,3051.3,3051.2,2.635e-05]
[1642720450056,4.65557392,3051.3,3051.2,2.635e-05]
[1642720450358,4.65557392,3051.3,3050.5,1.50022617]
[1642720450359,3.2,3051.2,3050.5,1.50022617]
[1642720450578,2.3517499,3051.1,3050.3,2.08976005]
[1642720450778,0.16014,3051.0,3050.6,0.00341055]
[1642720450977,0.29114,3051.0,3050.6,0.00341055]
[1642720451176,2.27522399,3050.9,3050.6,0.00341055]
[1642720451382,3.25530399,3050.9,3050.6,1.055e-05]
[1642720451580,1.85712527,3050.8,3050.4,4.739e-05]
[1642720451782,3.2,3050.6,3049.6,0.03]
[1642720451984,0.02430619,3050.4,3049.6,0.03]
[1642720452181,3.44098272,3050.5,3049.6,0.03]
[1642720452182,0.04296611,3049.9,3049.7,0.00397897]
[1642720452580,0.3,3049.9,3049.7,0.00397897]
[1642720452780,1.11131951,3049.8,3049.7,0.00397897]
[1642720452979,4.51131951,3049.8,3049.7,0.00397897]
[1642720453477,4.51131951,3049.8,3049.7,7.897e-05]
[1642720453681,6.87718296,3049.8,3049.7,7.897e-05]
[1642720453881,6.87718296,3049.8,3049.6,0.03]
[1642720453882,3.2,3049.7,3049.6,7.897e-05]
[1642720454080,5.8962452,3049.7,3049.6,7.897e-05]
[1642720454322,5.8962452,3049.7,3049.1,0.00108744]
[1642720454323,4.331,3049.7,3049.1,0.00108744]
[1642720454527,3.65167074,3049.6,3049.1,0.00108744]
[1642720454726,3.65167074,3049.6,3049.2,0.00284211]
[1642720457150,0.3,3048.9,3048.1,1.14318323]
[1642720457345,0.3,3048.9,3048.2,0.00568424]
[1642720457545,0.3,3049.2,3048.2,0.00568424]
[1642720458008,3.9725,3049.4,3048.2,0.00568424]
[1642720458208,3.9725,3049.4,3049.2,1.52444344]
[1642720458412,0.29134,3049.8,3049.2,1.52444344]
[1642720458413,0.1312,3049.8,3049.2,1.52444344]
[1642720458614,0.00222619,3050.0,3049.2,1.52444344]
[1642720458813,0.00284211,3049.7,3049.2,1.52444344]
[1642720459016,0.00397896,3049.9,3049.2,1.52444344]
[1642720459213,0.00222619,3050.4,3049.2,1.52444344]
[1642720459214,0.00227369,3049.6,3049.2,1.52444344]
[1642720459416,0.00341054,3049.8,3049.3,1.30913139]
[1642720459612,0.00222619,3050.4,3049.2,2.80644085]
[1642720459613,0.00170527,3049.5,3049.2,2.80644085]
[1642720459816,0.00284211,3049.7,3049.2,2.80644085]
[1642720460014,0.00113684,3049.4,3049.2,2.80644085]
[1642720460214,0.00227369,3049.6,3049.2,1.44805984]
[1642720460614,0.00170527,3049.5,3049.2,1.44805984]
[1642720461016,0.13322619,3050.3,3049.2,1.44805984]
[1642720461017,0.00113684,3049.4,3049.2,1.44805984]
[1642720461217,0.00113684,3049.4,3049.3,1.32617817]
[1642720461762,0.00113684,3049.4,3049.2,1.44914726]
[1642720461948,0.00113684,3049.4,3049.2,1.44914724]
[1642720462548,0.00113684,3049.4,3049.2,0.0010874]
[1642720464759,3.2,3049.3,3049.2,8.74e-05]
[1642720464962,3.2,3049.3,3048.2,0.00568424]
[1642720464963,0.0007126,3049.1,3048.2,0.00568424]
[1642720465155,0.0007126,3049.1,3048.2,0.00677164]
[1642720465156,0.8203748,3048.8,3048.2,0.00677164]
[1642720465355,0.8203748,3048.8,3048.2,0.0010874]
[1642720465356,3.08644975,3048.8,3048.2,0.0010874]
[1642720465599,3.08644975,3048.8,3048.3,0.00511582]
[1642720465600,4.38644975,3048.8,3048.3,0.00511582]
[1642720465802,4.38644975,3048.8,3048.3,0.00620322]
[1642720466003,0.3,3048.5,3048.3,0.00620322]
[1642720466206,0.3,3048.5,3048.4,0.00454739]
[1642720466404,3.27635782,3048.8,3048.4,0.00563479]
[1642720466405,2.19338374,3048.8,3048.4,0.00563479]
[1642720466605,1.6409552,3048.6,3048.4,0.00563479]
[1642720466803,3.93427793,3048.6,3048.5,7.897e-05]
[1642720467004,4.9549552,3048.6,3048.5,0.00116637]
[1642720467205,5.0861552,3048.6,3048.5,0.00116637]
[1642720467505,6.0861552,3048.6,3048.5,0.00116637]
[1642720467917,5.9549552,3048.6,3048.5,0.00116637]
[1642720468103,8.22400468,3048.6,3048.5,0.00116637]
[1642720468504,8.22400468,3048.6,3048.5,6.637e-05]
[1642720468707,8.22400468,3048.6,3047.3,0.6]
[1642720468708,0.82059,3048.2,3047.3,0.6]
[1642720468910,0.5122,3048.1,3047.3,0.6]
[1642720469106,0.5122,3048.1,3047.4,1.35366762]
[1642720469107,1.29295776,3047.9,3047.4,1.35366762]
[1642720469355,0.164,3047.8,3047.4,0.00625266]
[1642720469554,0.2952,3047.8,3047.5,0.00568423]
[1642720469755,0.164,3047.8,3047.2,1.28436732]
[1642720469957,0.164,3047.8,3046.3,0.01250531]
[1642720469958,0.820751,3047.5,3046.3,0.01250531]
[1642720470160,0.820751,3047.5,3046.1,0.6]
[1642720470161,0.820751,3047.5,3047.3,0.00682108]
[1642720470355,1.7727019,3047.6,3047.1,1.44422556]
[1642720470555,0.164,3047.5,3047.1,1.44422556]
[1642720470755,0.164,3047.5,3047.2,0.0073895]
[1642720470958,2.21246105,3047.4,3047.2,0.0073895]
[1642720471558,0.82085,3047.4,3047.2,0.0073895]
[1642720471757,0.8207441,3047.4,3047.2,0.0073895]
[1642720471959,0.545,3047.7,3047.2,0.0073895]
[1642720472258,0.545,3047.7,3047.3,1.43975941]
[1642720472259,0.381,3047.7,3047.3,1.43975941]
[1642720472458,0.82063,3048.0,3047.3,1.43975941]
[1642720472661,2.24217131,3048.0,3047.6,1.1376032]
[1642720472860,2.24217131,3048.0,3047.2,0.0073895]
[1642720472861,4.70407151,3048.0,3047.2,0.0073895]
[1642720473103,6.21627151,3048.0,3047.7,0.00454739]
[1642720473303,0.164,3047.8,3046.4,0.01193689]
[1642720473503,0.82076,3047.5,3046.4,0.01193689]
[1642720473703,0.164,3047.8,3046.4,0.01193689]
[1642720473904,0.8207419,3047.5,3046.4,0.01193689]
[1642720474106,3.57501221,3048.0,3047.3,1.2050182]
[1642720474310,2.0222709,3048.0,3047.3,1.2050182]
[1642720474705,2.8429409,3048.0,3047.3,1.2050182]
[1642720474905,2.1862709,3048.0,3046.4,0.01193689]
[1642720475105,0.8206089,3047.8,3046.4,0.01193689]
[1642720475307,2.31578421,3047.8,3047.4,1.44011853]
[1642720475507,0.8206089,3047.8,3047.4,1.44011853]
[1642720475705,0.8206089,3047.8,3047.5,0.00568423]
[1642720476505,0.8206089,3047.8,3046.4,0.01193689]
[1642720476958,0.8206089,3047.8,3047.0,1.54013845]
[1642720476959,0.82073,3047.6,3047.0,1.54013845]
[1642720477157,0.8207281,3047.5,3047.0,1.54013845]
[1642720477359,0.8207281,3047.5,3047.1,0.00795793]
[1642720478361,0.82078,3047.4,3047.1,0.00795793]
[1642720478560,0.82078,3047.4,3047.3,1.32339077]
[1642720478761,0.8207281,3047.5,3047.3,1.32339077]
[1642720478962,0.1312,3047.9,3047.3,1.33021185]
[1642720479964,0.1312,3047.9,3047.5,1.43639299]
[1642720480366,0.1312,3047.9,3047.8,1.11130023]
[1642720480819,0.1312,3047.9,3047.8,1.11527919]
[1642720482821,0.1312,3047.9,3047.8,0.00397896]
[1642720483224,0.1312,3047.9,3047.6,0.00511581]
[1642720483421,1.21674691,3048.3,3047.0,3.15]
[1642720483723,1.21674691,3048.3,3047.1,0.00795793]
[1642720483921,0.82048,3048.1,3047.4,1.12482576]
[1642720484355,0.82048,3048.1,3047.5,0.00568423]
[1642720484555,0.82048,3048.1,3047.8,1.48408416]
[1642720484954,0.82048,3048.1,3047.9,0.00341054]
[1642720485154,0.3,3048.0,3047.9,0.00341054]
[1642720485356,0.3,3048.0,3047.5,0.00568423]
[1642720485759,0.3,3048.0,3046.9,0.00909477]
[1642720485956,0.8205994,3047.8,3046.9,0.00909477]
[1642720486156,1.40532881,3047.6,3047.2,1.1156713]
[1642720486356,0.8205994,3047.8,3047.2,1.1156713]
[1642720486555,0.8205994,3047.8,3047.3,0.00682108]
[1642720487353,1.6412394,3047.8,3047.3,0.00682108]
[1642720487757,0.8205994,3047.8,3047.3,0.00682108]
[1642720488804,1.9412203,3048.0,3047.7,1.56024536]
[1642720488805,0.3,3048.0,3047.7,1.56024536]
[1642720489206,0.3,3048.0,3047.8,0.00397896]
[1642720491410,0.8204549,3048.2,3047.8,0.00397896]
[1642720492750,0.3,3048.1,3047.8,0.00397896]
[1642720492952,1.23556715,3048.0,3047.3,0.00682108]
[1642720493558,1.23556715,3048.0,3047.4,1.17084019]
[1642720493756,0.3,3048.1,3047.4,1.17084019]
[1642720493956,0.3,3048.1,3047.5,0.00568423]
[1642720494962,1.25667872,3047.8,3047.5,0.00568423]
[1642720495360,1.25667872,3047.8,3047.3,0.00682108]
[1642720495605,1.25667872,3047.8,3046.9,0.00909477]
[1642720496010,1.25667872,3047.8,3047.1,1.12525941]
[1642720496213,1.25667872,3047.8,3047.3,1.30135316]
[1642720496907,1.25667872,3047.8,3047.2,0.0073895]
[1642720497106,3.73467041,3047.8,3047.2,0.0073895]
[1642720497305,3.73467041,3047.8,3046.8,0.1312]
[1642720497306,3.19800452,3047.8,3046.9,0.00909477]
[1642720497513,4.01866452,3047.8,3046.9,0.00909477]
[1642720497712,1.0,3047.7,3046.9,0.00909477]
[1642720497911,1.0,3047.7,3047.2,1.54087856]
[1642720497912,0.8206585,3047.4,3047.2,1.54087856]
[1642720498311,0.8206585,3047.4,3047.3,0.00682108]
[1642720499551,0.8206585,3047.4,3046.7,0.01023162]
[1642720499751,0.8206585,3047.4,3046.6,0.01080004]
[1642720499951,2.91076584,3047.5,3046.6,0.01080004]
[1642720499952,0.820746,3047.3,3046.6,0.01080004]
[1642720500150,0.820746,3047.3,3046.9,1.535847]
[1642720500151,2.11958065,3047.3,3046.9,1.535847]
[1642720500351,0.82075,3047.2,3046.9,1.535847]
[1642720500552,0.82075,3047.2,3047.0,0.00852635]
[1642720501154,0.82075,3047.2,3046.5,0.01136847]
[1642720501155,0.3,3047.1,3046.5,0.01136847]
[1642720501359,1.805825,3047.0,3045.9,4.31606847]
[1642720501552,0.31697982,3046.9,3046.2,0.00170527]
[1642720501751,0.82097,3046.7,3046.2,0.00170527]
[1642720501953,1.50956263,3046.3,3046.2,0.00170527]
[1642720502154,4.3745,3046.3,3046.2,0.00170527]
[1642720502353,0.8211418,3046.1,3045.1,0.1313]
[1642720502553,0.164,3046.0,3045.5,0.00397896]
[1642720503004,0.164,3046.0,3045.6,1.34929948]
[1642720503209,0.82116,3046.0,3045.6,1.34929948]
[1642720503408,0.82116,3046.0,3045.7,0.00284212]
[1642720503810,1.6422959,3046.0,3045.7,0.00284212]
[1642720504013,4.30045397,3046.0,3045.7,0.00284212]
[1642720504212,4.30045397,3046.0,3044.9,0.1313]
[1642720504213,3.2,3045.8,3044.9,0.1313]
[1642720504416,1.64281,3045.6,3044.3,2.0]
[1642720504614,1.64281,3045.6,3045.0,0.00397896]
[1642720504615,1.37116836,3045.1,3045.0,0.00397896]
[1642720504821,0.1313,3045.1,3045.0,7.896e-05]
[1642720505012,3.15,3045.0,3044.3,2.0]
[1642720505217,0.8215649,3044.7,3044.4,0.00341054]
[1642720505416,0.8215649,3044.7,3042.9,2.01274989]
[1642720505417,0.164,3044.5,3043.3,2.78698655]